bitfinex-derivatives/quotes_BTCF0:USTF0_20210404
["timestamp","ask_amount","ask_price","bid_price","bid_amount"]
[1617562008135,0.00207928,58037.0,58033.0,1.47]
[1617562008938,0.00208055,58038.0,58033.0,1.47]
[1617562009338,0.00208057,58039.0,58033.0,1.47]
[1617562009539,0.00208057,58039.0,58033.0,0.27]
[1617562009739,0.00208081,58038.0,58033.0,0.27]
[1617562010139,0.00208081,58038.0,58033.0,3.3414]
[1617562010339,0.00208081,58038.0,58033.0,3.0714]
[1617562010739,0.00208081,58038.0,58034.0,0.27]
[1617562010940,0.0050516,58038.0,58037.0,0.10725655]
[1617562011341,0.0050516,58038.0,58037.0,0.37725655]
[1617562013045,0.00505066,58039.0,58037.0,0.37725655]
[1617562013446,0.0020798,58038.0,58037.0,0.37725655]
[1617562015748,0.0020798,58038.0,58037.0,1.37725655]
[1617562015947,0.65717648,58038.0,58037.0,1.74069312]
[1617562016149,0.65717648,58038.0,58037.0,0.74069312]
[1617562016749,1.09511832,58038.0,58037.0,0.74069312]
[1617562016947,1.20237487,58038.0,58037.0,0.74069312]
[1617562017549,1.44522556,58038.0,58037.0,0.74069312]
[1617562021057,1.44522556,58038.0,58037.0,0.90962312]
[1617562023258,1.00728372,58038.0,58037.0,0.90962312]
[1617562029469,0.90002717,58038.0,58037.0,0.90962312]
[1617562030164,0.65717648,58038.0,58037.0,0.90962312]
[1617562035669,0.65717648,58038.0,58037.0,1.3538469]
[1617562036270,0.65717648,58038.0,58037.0,2.3538469]
[1617562036670,0.65717648,58038.0,58037.0,0.90962312]
[1617562037071,0.65717648,58038.0,58037.0,2.35384841]
[1617562038072,0.65717648,58038.0,58037.0,2.55384841]
[1617562038473,0.65717648,58038.0,58037.0,2.64490743]
[1617562038876,0.29872563,58038.0,58037.0,5.58690743]
[1617562039274,0.00508448,58038.0,58037.0,6.09156284]
[1617562040078,0.002094,58038.0,58037.0,6.09156284]
[1617562040676,0.002094,58038.0,58037.0,7.59156284]
[1617562041079,0.00209463,58039.0,58037.0,7.59156284]
[1617562041480,0.00209463,58039.0,58038.0,2.6637635]
[1617562041679,0.00209463,58039.0,58038.0,4.1637635]
[1617562041880,0.00209463,58039.0,58038.0,4.4337635]
[1617562042280,0.00209538,58040.0,58038.0,4.4337635]
[1617562042683,0.00209538,58040.0,58039.0,1.66373434]
[1617562043081,0.00209538,58040.0,58039.0,2.93373434]
[1617562043282,0.0100867,58040.0,58039.0,4.43373434]
[1617562046285,0.00509273,58040.0,58039.0,4.43373434]
[1617562046485,0.00509273,58040.0,58039.0,7.79153434]
[1617562047184,0.00509273,58040.0,58039.0,7.93315562]
[1617562047988,0.01008561,58041.0,58039.0,7.93315562]
[1617562047989,0.00509466,58041.0,58039.0,7.93315562]
[1617562048385,0.00509466,58041.0,58040.0,1.0]
[1617562048586,0.00209838,58041.0,58040.0,2.80658012]
[1617562048786,0.00209838,58041.0,58040.0,3.07658012]
[1617562048985,0.00509607,58042.0,58040.0,3.07658012]
[1617562049386,0.01010093,58042.0,58041.0,2.37392893]
[1617562049585,0.01010093,58042.0,58041.0,2.57392893]
[1617562049786,0.00209652,58044.0,58041.0,2.93497095]
[1617562050185,0.00209652,58044.0,58042.0,1.0]
[1617562050386,0.00209652,58044.0,58043.0,0.80653194]
[1617562050588,0.00209652,58044.0,58043.0,2.07653194]
[1617562050788,0.0050945,58044.0,58043.0,2.13722756]
[1617562051088,0.0050945,58044.0,58043.0,2.24448411]
[1617562051691,0.01008911,58045.0,58043.0,2.24448411]
[1617562051990,0.01008911,58045.0,58043.0,1.24448411]
[1617562052191,0.01008911,58045.0,58044.0,1.86727041]
[1617562052590,0.01008911,58045.0,58044.0,2.13727041]
[1617562053593,0.00509484,58045.0,58044.0,2.13727041]
[1617562054594,0.01009098,58045.0,58044.0,2.13727041]
[1617562054996,0.00509608,58045.0,58044.0,2.13727041]
[1617562055495,0.00509608,58045.0,58044.0,1.69365538]
[1617562055496,0.29975237,58045.0,58044.0,1.69365538]
[1617562055896,0.01008969,58045.0,58044.0,2.13718814]
[1617562056995,0.29971141,58045.0,58044.0,1.69365538]
[1617562058899,0.29974725,58046.0,58044.0,2.13718178]
[1617562059296,0.35967673,58048.0,58045.0,1.42357636]
[1617562059518,3.4647,58046.0,58045.0,1.42357636]
[1617562059730,3.4647,58046.0,58045.0,0.42357636]
[1617562059918,3.4647,58046.0,58045.0,0.07069744]
[1617562059919,5.36655131,58046.0,58045.0,0.07069744]
[1617562060124,6.86655131,58046.0,58045.0,0.07069744]
[1617562060298,6.86655131,58046.0,58045.0,0.01]
[1617562060299,8.16800376,58046.0,58045.0,0.01]
[1617562060699,8.16800376,58046.0,58036.0,0.27]
[1617562060902,8.32572376,58046.0,58045.0,0.01]
[1617562061100,7.83070234,58046.0,58045.0,0.01]
[1617562061305,5.78703895,58046.0,58029.0,0.26]
[1617562061599,7.37952903,58046.0,58045.0,0.27]
[1617562062000,6.82216663,58046.0,58027.0,0.26]
[1617562062199,6.82216663,58046.0,58045.0,0.26]
[1617562062499,5.22967655,58046.0,58027.0,0.27]
[1617562063000,6.82243471,58046.0,58027.0,0.27]
[1617562063200,0.10725655,58028.0,58027.0,0.27]
[1617562063508,0.90581148,58028.0,58027.0,0.63294932]
[1617562063902,1.14867626,58028.0,58026.0,0.3629498]
[1617562064300,1.14867626,58028.0,58027.0,0.27]
[1617562064501,1.14867626,58028.0,58026.0,0.3629498]
[1617562064902,1.14867626,58028.0,58027.0,3.7749]
[1617562065301,1.14867626,58028.0,58027.0,4.13784148]
[1617562065302,0.29869311,58028.0,58027.0,4.13784148]
[1617562065703,0.29869311,58028.0,58027.0,4.8724903]
[1617562065704,0.01006138,58028.0,58027.0,4.8724903]
[1617562065903,0.01006138,58028.0,58027.0,5.8724903]
[1617562066105,0.00209214,58029.0,58027.0,5.8724903]
[1617562066503,0.00209214,58029.0,58028.0,1.0]
[1617562066704,0.00209246,58030.0,58028.0,1.2]
[1617562066903,0.00209246,58030.0,58028.0,1.47]
[1617562067104,0.00209351,58033.0,58029.0,1.0]
[1617562067303,0.00209351,58033.0,58032.0,0.30725655]
[1617562067703,0.00209351,58033.0,58032.0,0.31725655]
[1617562067904,0.00209398,58035.0,58032.0,0.31725655]
[1617562068103,0.00209398,58035.0,58032.0,1.31725655]
[1617562068404,0.00209508,58037.0,58035.0,0.2]
[1617562068806,0.00209549,58039.0,58036.0,1.27613762]
[1617562069005,0.00209549,58039.0,58036.0,1.39505762]
[1617562069205,0.00209549,58039.0,58038.0,0.10725655]
[1617562069409,0.0020957,58040.0,58038.0,0.10725655]
[1617562069608,0.0020957,58040.0,58038.0,0.37725655]
[1617562069808,0.00508956,58041.0,58038.0,2.24404441]
[1617562069809,0.00209609,58041.0,58038.0,2.24404441]
[1617562070209,0.00209609,58041.0,58039.0,1.0]
[1617562070411,0.00209609,58041.0,58040.0,0.80609176]
[1617562070611,0.00209609,58041.0,58040.0,1.07609176]
[1617562070812,0.00209669,58042.0,58040.0,1.13679086]
[1617562071115,0.00209637,58041.0,58040.0,0.27]
[1617562071513,0.00209677,58042.0,58040.0,1.16712239]
[1617562071713,0.00209677,58042.0,58040.0,2.16712239]
[1617562071913,0.00209677,58042.0,58041.0,1.0]
[1617562072114,0.00209688,58043.0,58041.0,1.866741]
[1617562072313,0.00209688,58043.0,58041.0,2.136741]
[1617562072514,0.00209701,58044.0,58043.0,1.0]
[1617562072715,0.00209701,58044.0,58043.0,1.2]
[1617562072914,0.00209703,58045.0,58043.0,1.27588786]
[1617562073114,0.00209703,58045.0,58043.0,2.27588786]
[1617562073315,0.00209756,58046.0,58044.0,1.17383882]
[1617562073514,0.00209756,58046.0,58044.0,2.17383882]
[1617562073717,0.00209756,58046.0,58045.0,1.47]
[1617562074316,0.00209756,58046.0,58045.0,2.42761374]
[1617562076323,0.00209751,58047.0,58045.0,1.42761374]
[1617562076520,0.00209751,58047.0,58045.0,2.42761374]
[1617562076720,0.00509449,58048.0,58045.0,2.42761374]
[1617562076721,0.00209797,58048.0,58046.0,0.86654675]
[1617562076920,0.00209797,58048.0,58047.0,0.2]
[1617562077120,0.0020984,58050.0,58047.0,2.3364364]
[1617562077520,2.915,58049.0,58048.0,1.0]
[1617562077720,2.915,58049.0,58048.0,1.06069181]
[1617562077919,2.915,58049.0,58048.0,1.18772181]
[1617562078120,2.915,58049.0,58048.0,1.99347661]
[1617562078519,2.915,58049.0,58048.0,1.9327848]
[1617562078721,2.92508709,58049.0,58048.0,1.48961966]
[1617562079123,3.21466847,58049.0,58048.0,1.48961966]
[1617562080623,3.21466847,58049.0,58048.0,0.48961966]
[1617562080922,2.915,58049.0,58048.0,0.48961966]
[1617562081322,2.915,58049.0,58048.0,0.37258966]
[1617562081525,3.05034,58049.0,58048.0,0.37258966]
[1617562081925,3.34983535,58049.0,58048.0,0.37258966]
[1617562082324,4.34983535,58049.0,58048.0,0.37258966]
[1617562082545,4.34983535,58049.0,58048.0,0.01]
[1617562082546,5.14669927,58049.0,58048.0,0.01]
[1617562082935,5.14669927,58049.0,58038.0,0.27]
[1617562083330,5.14669927,58049.0,58048.0,0.01]
[1617562083529,3.54842544,58049.0,58039.0,0.27]
[1617562083932,3.54842544,58049.0,58048.0,0.02]
[1617562084130,3.54842544,58049.0,58040.0,0.27]
[1617562084329,4.14644663,58049.0,58040.0,0.27]
[1617562084529,4.14644663,58049.0,58048.0,0.02]
[1617562084729,4.14644663,58049.0,58039.0,0.26]
[1617562084928,4.14644663,58049.0,58038.0,0.36278171]
[1617562084929,0.43833359,58044.0,58041.0,0.26]
[1617562085135,0.43833359,58044.0,58038.0,0.36278171]
[1617562085330,0.10725655,58039.0,58034.0,0.44339669]
[1617562085736,0.10725655,58039.0,58034.0,1.45339669]
[1617562085934,0.00209218,58035.0,58034.0,1.01]
[1617562086134,0.00209218,58035.0,58034.0,1.0]
[1617562086341,0.00209218,58035.0,58034.0,1.13687239]
[1617562087631,0.11089156,58035.0,58034.0,1.13687239]
[1617562088233,0.10581,58035.0,58034.0,1.13687239]
[1617562088634,0.1158746,58035.0,58034.0,0.69347967]
[1617562091334,0.0100646,58035.0,58034.0,0.69347967]
[1617562091739,0.29904828,58036.0,58034.0,1.13689857]
[1617562091740,0.00508748,58036.0,58034.0,1.13689857]
[1617562092137,0.01007367,58036.0,58035.0,0.42350015]
[1617562092536,0.01007367,58036.0,58035.0,1.69350015]
[1617562092737,0.00209549,58037.0,58035.0,2.13690666]
[1617562093143,0.00209549,58037.0,58035.0,1.13690666]
[1617562093337,0.00209527,58036.0,58035.0,1.13690666]
[1617562093738,0.00209557,58037.0,58035.0,1.13690666]
[1617562093937,0.00209557,58037.0,58035.0,2.13690666]
[1617562094241,0.00209533,58036.0,58035.0,1.27]
[1617562094639,0.00209533,58036.0,58035.0,2.07617393]
[1617562095740,0.00508844,58036.0,58035.0,2.07617393]
[1617562096141,0.00508909,58037.0,58035.0,2.07617393]
[1617562096540,0.01007694,58037.0,58036.0,0.42348728]
[1617562096941,0.01007694,58037.0,58036.0,0.69348728]
[1617562097140,0.01007726,58038.0,58036.0,1.69348728]
[1617562097340,0.01007726,58038.0,58037.0,0.10725655]
[1617562097541,0.00508973,58038.0,58037.0,1.97413768]
[1617562097740,0.00508973,58038.0,58037.0,2.24413768]
[1617562098140,0.00508973,58038.0,58037.0,1.24413768]
[1617562098341,0.00209569,58038.0,58037.0,0.80073915]
[1617562098541,0.00209569,58038.0,58037.0,1.80073915]
[1617562098741,0.00209569,58038.0,58037.0,2.2441292]
[1617562099941,0.00209702,58039.0,58037.0,2.4441292]
[1617562100343,0.00209737,58040.0,58038.0,1.95790592]
[1617562100543,0.00209737,58040.0,58039.0,3.1356]
[1617562100741,0.00209737,58040.0,58039.0,4.4056]
[1617562100942,0.0020975,58041.0,58039.0,4.46629976]
[1617562101342,0.0020975,58041.0,58039.0,3.46629976]
[1617562101544,0.0020975,58041.0,58040.0,1.1578881]
[1617562101944,0.0020975,58041.0,58040.0,1.4278881]
[1617562102343,0.0020975,58041.0,58040.0,2.4278881]
[1617562104142,0.00509445,58042.0,58040.0,2.4278881]
[1617562104544,0.00509445,58042.0,58041.0,1.86684339]
[1617562104944,0.00509445,58042.0,58041.0,2.13684339]
[1617562106746,0.01008901,58043.0,58041.0,2.13684339]
[1617562107149,0.01008901,58043.0,58042.0,1.42346666]
[1617562107548,0.01008901,58043.0,58042.0,1.69346666]
[1617562109148,0.01008901,58043.0,58042.0,1.27]
[1617562109348,0.01008901,58043.0,58042.0,0.63276854]
[1617562109950,0.29988648,58043.0,58042.0,0.63276854]
[1617562110350,0.65965365,58043.0,58042.0,0.3307023]
[1617562110750,0.65965365,58043.0,58042.0,0.69376225]
[1617562111451,0.7669102,58043.0,58042.0,0.69376225]
[1617562112050,1.00972456,58043.0,58042.0,0.69376225]
[1617562114253,1.00972456,58043.0,58042.0,0.84017225]
[1617562118660,1.00972456,58043.0,58042.0,4.28427225]
[1617562121065,1.00972456,58043.0,58042.0,4.72848654]
[1617562131771,1.00972456,58043.0,58042.0,1.28438654]
[1617562133973,1.13521456,58043.0,58042.0,1.13797654]
[1617562137380,1.57759798,58043.0,58042.0,1.13797654]
[1617562157100,1.45210798,58043.0,58042.0,1.13797654]
[1617562158303,1.00972456,58043.0,58042.0,1.13797654]
[1617562158704,1.45155615,58043.0,58042.0,1.13797654]
[1617562167015,1.45097391,58043.0,58042.0,1.13797654]
[1617562172024,1.34371736,58043.0,58042.0,1.13797654]
[1617562172225,1.34371736,58043.0,58042.0,1.30506654]
[1617562172625,1.45097391,58043.0,58042.0,1.41232309]
[1617562173027,1.20815955,58043.0,58042.0,1.41232309]
[1617562173226,1.45097484,58043.0,58042.0,5.10372309]
[1617562173626,1.45097484,58043.0,58042.0,5.19477872]
[1617562174829,1.45097484,58043.0,58042.0,1.50337872]
[1617562175030,1.45097484,58043.0,58042.0,1.39612217]
[1617562175229,1.45097484,58043.0,58042.0,1.22903217]
[1617562175431,1.45097484,58043.0,58042.0,1.13797654]
[1617562175730,1.81520319,58043.0,58042.0,1.13797654]
[1617562188351,1.45097484,58043.0,58042.0,1.13797654]
[1617562188553,1.45097484,58043.0,58042.0,3.66057654]
[1617562189152,1.45097484,58043.0,58042.0,3.75163413]
[1617562195763,3.08573484,58043.0,58042.0,1.22903413]
[1617562195962,7.78953484,58043.0,58042.0,1.22903413]
[1617562196363,8.29181175,58043.0,58042.0,0.69376225]
[1617562196763,8.29181175,58043.0,58042.0,0.27]
[1617562196764,9.78448887,58043.0,58042.0,0.27]
[1617562197165,9.78448887,58043.0,58024.0,0.98410096]
[1617562197166,9.78448887,58043.0,58036.0,0.01]
[1617562197566,6.44581655,58043.0,58042.0,0.27]
[1617562197765,6.44581655,58043.0,58034.0,0.27]
[1617562197964,9.11861974,58043.0,58032.0,0.36411099]
[1617562198165,9.41941563,58043.0,58033.0,0.27]
[1617562198369,1.0,58039.0,58035.0,0.27]
[1617562198566,1.0,58039.0,58032.0,0.36411099]
[1617562198767,1.0,58039.0,58033.0,0.27]
[1617562198968,1.60470927,58036.0,58032.0,0.36411099]
[1617562199369,0.50144658,58036.0,58033.0,0.27]
[1617562199771,1.09996955,58034.0,58029.0,0.27]
[1617562200171,1.09996955,58034.0,58028.0,0.27]
[1617562200369,1.09996955,58034.0,58030.0,0.27]
[1617562200569,0.50144658,58036.0,58030.0,0.27]
[1617562200769,0.50144658,58036.0,58027.0,0.27]
[1617562200971,0.27470655,58028.0,58026.0,0.36308703]
[1617562201171,0.93464623,58028.0,58026.0,0.36308703]
[1617562201372,0.93464623,58028.0,58027.0,0.27]
[1617562201572,0.27470655,58028.0,58027.0,0.27]
[1617562201872,1.17753024,58028.0,58027.0,0.33071741]
[1617562202272,2.67753024,58028.0,58027.0,0.33071741]
[1617562202676,6.16563024,58028.0,58027.0,0.33071741]
[1617562202873,6.60542289,58028.0,58027.0,0.27]
[1617562203272,5.26280655,58028.0,58025.0,0.01]
[1617562203672,5.26280655,58028.0,58014.0,0.27]
[1617562203673,3.76280655,58028.0,58027.0,0.27]
[1617562203873,3.76280655,58028.0,58026.0,0.01]
[1617562204074,4.86113903,58028.0,58026.0,0.01]
[1617562204273,4.86113903,58028.0,58020.0,0.63304636]
[1617562204473,0.43902059,58025.0,58021.0,0.27]
[1617562204875,0.10725655,58022.0,58020.0,0.36304636]
[1617562205075,0.76572857,58022.0,58021.0,0.27]
[1617562205475,1.00862948,58022.0,58021.0,0.27]
[1617562206375,1.00862948,58022.0,58019.0,0.36305138]
[1617562206775,1.00862948,58022.0,58020.0,0.27]
[1617562206976,0.24290258,58021.0,58020.0,0.36305194]
[1617562207376,0.90144744,58021.0,58020.0,0.69377726]
[1617562207575,0.90144744,58021.0,58020.0,0.42377726]
[1617562207976,0.90144744,58021.0,58020.0,0.69377726]
[1617562208176,0.90144744,58021.0,58020.0,0.63305194]
[1617562208577,0.90144744,58021.0,58020.0,0.69377722]
[1617562208976,0.90144744,58021.0,58020.0,0.33072528]
[1617562209377,2.40144744,58021.0,58020.0,0.33072528]
[1617562209777,3.40144744,58021.0,58020.0,0.33072528]
[1617562209978,4.20362832,58021.0,58020.0,0.27]
[1617562210380,4.20362832,58021.0,58013.0,0.27]
[1617562210578,2.9929,58014.0,58013.0,0.27]
[1617562210778,3.81790415,58014.0,58010.0,0.36308709]
[1617562210979,0.10725655,58011.0,58010.0,0.36308709]
[1617562211177,0.76372639,58011.0,58010.0,0.36308709]
[1617562211377,0.76372639,58011.0,58010.0,0.63308709]
[1617562212177,1.00666021,58011.0,58010.0,0.69382055]
[1617562212477,0.76372639,58011.0,58010.0,0.33073346]
[1617562212678,0.10725655,58011.0,58010.0,0.33073346]
[1617562212881,0.7635235,58011.0,58010.0,0.33073346]
[1617562213480,0.10725655,58011.0,58010.0,0.33073346]
[1617562213881,1.00645689,58011.0,58010.0,0.33073346]
[1617562214289,0.35019768,58011.0,58010.0,0.33073346]
[1617562214707,1.00623351,58011.0,58010.0,0.33073346]
[1617562215086,0.40546369,58011.0,58010.0,0.69372791]
[1617562215284,3.38806369,58011.0,58010.0,0.69372791]
[1617562215584,3.08985655,58011.0,58010.0,0.69372791]
[1617562215782,3.63091621,58011.0,58010.0,0.33073346]
[1617562216185,3.38797617,58011.0,58010.0,0.69373015]
[1617562217388,3.08985655,58011.0,58010.0,0.27]
[1617562217787,3.08985655,58011.0,58009.0,0.27]
[1617562218189,3.08985655,58011.0,58010.0,0.27]
[1617562218387,3.08985655,58011.0,58008.0,0.01]
[1617562218587,3.08985655,58011.0,58007.0,2.6455]
[1617562218787,3.08985655,58011.0,58010.0,0.27]
[1617562218988,3.08985655,58011.0,58008.0,0.27]
[1617562219390,3.08985655,58011.0,58010.0,0.27]
[1617562219590,3.08985655,58011.0,58008.0,0.27]
[1617562236813,0.10725655,58011.0,58008.0,0.27]
[1617562237214,0.10725655,58011.0,58010.0,0.10725655]
[1617562237615,0.10725655,58011.0,58010.0,0.37725655]
[1617562239015,3.29505655,58011.0,58010.0,0.37725655]
[1617562240018,3.29713243,58011.0,58010.0,0.37725655]
[1617562244823,3.29505655,58011.0,58010.0,0.37725655]
[1617562247924,3.30507517,58011.0,58010.0,0.74016304]
[1617562248525,3.59264031,58011.0,58010.0,0.74016304]
[1617562249324,3.59264031,58011.0,58010.0,0.37725655]
[1617562249524,0.40484031,58011.0,58010.0,0.37725655]
[1617562249826,0.40484031,58011.0,58010.0,3.89445655]
[1617562250528,0.76187656,58011.0,58010.0,3.89445655]
[1617562251028,1.00481437,58011.0,58010.0,3.89445655]
[1617562253333,1.00481437,58011.0,58010.0,3.7872]
[1617562255138,1.00481437,58011.0,58010.0,0.27]
[1617562255539,4.08171437,58011.0,58010.0,0.27]
[1617562256240,4.08171437,58011.0,58009.0,0.01]
[1617562256640,4.08171437,58011.0,58010.0,0.27]
[1617562256840,4.08171437,58011.0,58008.0,0.36304765]
[1617562257040,0.89726921,58010.0,58009.0,0.27]
[1617562257240,0.59983814,58010.0,58009.0,0.27]
[1617562257841,0.89728708,58010.0,58009.0,0.33073581]
[1617562259643,1.33490341,58010.0,58009.0,1.14019298]
[1617562261746,1.33490341,58010.0,58009.0,3.70169298]
[1617562262147,1.09196273,58010.0,58009.0,3.79279679]
[1617562262648,1.33490672,58010.0,58009.0,3.79279679]
[1617562263349,1.33490672,58010.0,58009.0,1.23129679]
[1617562263749,4.62520672,58010.0,58009.0,1.23129679]
[1617562263950,4.18759039,58010.0,58009.0,1.14019298]
[1617562264151,0.89729039,58010.0,58009.0,1.14019298]
[1617562264549,0.89729039,58010.0,58009.0,1.34019298]
[1617562265150,3.42029039,58010.0,58009.0,1.34019298]
[1617562265351,3.42029039,58010.0,58009.0,1.44744953]
[1617562266352,3.42029039,58010.0,58009.0,1.24744953]
[1617562267153,3.8573988,58010.0,58009.0,1.24744953]
[1617562268455,3.42029039,58010.0,58009.0,1.24744953]
[1617562272160,3.85738012,58010.0,58009.0,1.24744953]
[1617562272361,3.55993118,58010.0,58009.0,1.24744953]
[1617562272660,3.85795414,58010.0,58009.0,1.24744953]
[1617562273561,3.42086441,58010.0,58009.0,1.24744953]
[1617562280571,3.42086441,58010.0,58009.0,1.44744953]
[1617562281872,3.42086441,58010.0,58009.0,1.95315832]
[1617562282974,3.42086441,58010.0,58009.0,2.95315832]
[1617562283577,3.42086441,58010.0,58009.0,3.04425415]
[1617562284177,0.89786441,58010.0,58009.0,3.04425415]
[1617562284377,0.89786441,58010.0,58009.0,5.65925415]
[1617562285179,0.89786441,58010.0,58009.0,5.5519976]
[1617562285779,0.29802296,58010.0,58009.0,5.5519976]
[1617562285979,0.40527951,58010.0,58009.0,5.65925415]
[1617562286779,0.10725655,58010.0,58009.0,5.65925415]
[1617562287180,0.11731487,58010.0,58009.0,5.65925415]
[1617562287780,0.01005832,58010.0,58009.0,5.65925415]
[1617562289079,0.00209172,58010.0,58009.0,5.65925415]
[1617562290284,0.35871141,58017.0,58009.0,5.65925415]
[1617562290285,0.00209391,58016.0,58009.0,6.22507895]
[1617562290682,0.0050852,58017.0,58015.0,1.31351038]
[1617562290683,0.00209471,58017.0,58015.0,1.31351038]
[1617562290882,0.00209471,58017.0,58016.0,0.2]
[1617562291082,0.00209471,58017.0,58016.0,1.78350339]
[1617562291282,0.00209471,58017.0,58016.0,2.78350339]
[1617562291688,0.00209471,58017.0,58016.0,2.93529664]
[1617562291886,0.00209471,58017.0,58016.0,3.04255319]
[1617562292484,0.0050869,58017.0,58016.0,3.04255319]
[1617562294686,0.29944934,58020.0,58017.0,3.0725]
[1617562294687,0.0020965,58019.0,58017.0,3.0725]
[1617562294885,0.0020965,58019.0,58018.0,0.2]
[1617562295086,0.00209676,58020.0,58018.0,0.47]
[1617562295287,0.00209676,58020.0,58018.0,1.47]
[1617562295489,0.00209676,58020.0,58019.0,1.0]
[1617562295687,0.00209676,58020.0,58019.0,1.2]
[1617562295887,0.00209676,58020.0,58019.0,2.84410398]
[1617562297791,0.00209188,58024.0,58019.0,2.84410398]
[1617562297992,0.00209188,58024.0,58023.0,0.10725655]
[1617562298190,0.00209188,58024.0,58023.0,0.91361923]
[1617562298391,0.00209188,58024.0,58023.0,1.18361923]
[1617562298590,0.00209188,58024.0,58023.0,2.18361923]
[1617562298791,0.00209188,58024.0,58023.0,2.24433197]
[1617562299391,0.00209289,58025.0,58023.0,2.24433197]
[1617562299793,0.00209289,58025.0,58024.0,0.86707537]
[1617562299993,0.00209289,58025.0,58024.0,1.86707537]
[1617562300195,0.00209289,58025.0,58024.0,2.13707537]
[1617562302797,0.00508028,58026.0,58024.0,2.13707537]
[1617562302998,0.00508825,58025.0,58024.0,2.13707537]
[1617562303199,0.00508825,58025.0,58024.0,1.13707537]
[1617562303398,0.00209549,58025.0,58024.0,1.13707537]
[1617562303597,0.00209549,58025.0,58024.0,2.13707537]
[1617562306099,0.00209549,58025.0,58024.0,2.33707537]
[1617562306500,0.00209549,58025.0,58024.0,2.42814358]
[1617562307101,0.2994755,58029.0,58024.0,2.42814358]
[1617562307102,0.00209714,58029.0,58024.0,2.42814358]
[1617562307501,0.00209761,58030.0,58025.0,1.0]
[1617562307700,0.00209761,58030.0,58026.0,0.2]
[1617562307901,0.00209759,58031.0,58029.0,0.80610253]
[1617562308101,0.00209759,58031.0,58030.0,0.30725655]
[1617562308306,0.00209759,58031.0,58030.0,1.38334882]
[1617562308503,0.00209759,58031.0,58030.0,2.38334882]
[1617562308903,0.29980197,58035.0,58030.0,2.00070439]
[1617562308904,0.00209444,58035.0,58030.0,2.00070439]
[1617562309305,0.0020946,58036.0,58032.0,1.0]
[1617562309505,0.0020946,58036.0,58033.0,0.2]
[1617562309705,0.0020946,58036.0,58034.0,1.0]
[1617562309906,0.00508688,58037.0,58035.0,1.2]
[1617562310106,0.00508688,58037.0,58036.0,0.10725655]
[1617562310309,0.01007401,58038.0,58036.0,1.30725655]
[1617562310507,0.01007401,58038.0,58036.0,1.57725655]
[1617562310707,0.01007401,58038.0,58037.0,1.0]
[1617562310910,0.01007401,58038.0,58037.0,1.2]
[1617562311113,0.01007401,58038.0,58037.0,0.47]
[1617562311409,0.01007401,58038.0,58037.0,1.47]
[1617562311609,0.01007401,58038.0,58037.0,1.27]
[1617562312011,0.29930484,58039.0,58037.0,1.27]
[1617562312410,0.29936032,58038.0,58037.0,1.27]
[1617562314612,0.29936032,58038.0,58037.0,1.47]
[1617562318518,0.29936032,58038.0,58037.0,1.27]
[1617562318720,0.29936032,58038.0,58037.0,0.27]
[1617562321224,0.29936032,58038.0,58036.0,0.27]
[1617562321422,0.29936032,58038.0,58037.0,0.27]
[1617562321622,0.29936032,58038.0,58035.0,3.2685]
[1617562321824,0.29936032,58038.0,58036.0,0.27]
[1617562322022,0.65819595,58038.0,58036.0,0.27]
[1617562322223,0.7654525,58038.0,58037.0,0.10725655]
[1617562322424,0.46609218,58038.0,58037.0,0.10725655]
[1617562322625,0.46609218,58038.0,58037.0,0.37725655]
[1617562322826,0.40634119,58038.0,58037.0,0.37725655]
[1617562323527,0.40634119,58038.0,58037.0,1.37725655]
[1617562323929,0.40634119,58038.0,58037.0,0.37725655]
[1617562324237,0.11732388,58038.0,58037.0,1.37725655]
[1617562324629,0.11732388,58038.0,58037.0,0.37725655]
[1617562325232,0.40638343,58038.0,58037.0,0.37725655]
[1617562332136,0.10725655,58038.0,58037.0,0.37725655]
[1617562334239,0.11732739,58038.0,58037.0,0.37725655]
[1617562335843,0.40684192,58038.0,58037.0,0.37725655]
[1617562337343,0.10725655,58038.0,58037.0,0.37725655]
[1617562337543,0.40694504,58038.0,58037.0,0.37725655]
[1617562346653,0.40694504,58038.0,58037.0,3.84265655]
[1617562346853,0.76767033,58038.0,58037.0,4.6506198]
[1617562347255,0.76767033,58038.0,58037.0,4.74167829]
[1617562347755,1.01049205,58038.0,58037.0,4.74167829]
[1617562355065,0.9032355,58038.0,58037.0,5.94167829]
[1617562355866,0.00512053,58045.0,58037.0,7.01202745]
[1617562356066,0.30130822,58047.0,58044.0,0.86832852]
[1617562356266,0.00512283,58049.0,58045.0,0.2]
[1617562356467,0.00512283,58049.0,58048.0,0.30725655]
[1617562356668,0.00512501,58051.0,58048.0,1.61980076]
[1617562356867,0.00512501,58051.0,58048.0,2.88980076]
[1617562357067,0.30157177,58054.0,58049.0,1.0]
[1617562357068,0.00512766,58054.0,58049.0,1.0]
[1617562357267,0.00512766,58054.0,58053.0,3.1047]
[1617562357468,0.00512766,58054.0,58053.0,4.3047]
[1617562357668,0.00512766,58054.0,58053.0,4.3147]
[1617562357867,0.00512751,58055.0,58053.0,5.62720801]
[1617562358274,0.30206411,58055.0,58054.0,1.60723532]
[1617562358468,0.30206411,58055.0,58054.0,1.91449187]
[1617562358670,0.01016858,58056.0,58054.0,3.04290467]
[1617562359171,0.01017089,58057.0,58055.0,2.03163498]
[1617562359370,0.01017089,58057.0,58056.0,0.2]
[1617562359570,0.01017125,58058.0,58056.0,2.94961319]
[1617562359970,0.01017278,58059.0,58057.0,1.46557378]
[1617562360179,0.01017278,58059.0,58058.0,0.2]
[1617562360371,0.01017278,58059.0,58058.0,0.47]
[1617562360571,0.01017278,58059.0,58058.0,2.78387807]
[1617562361171,0.01017278,58059.0,58058.0,2.84455472]
[1617562361672,0.10725655,58068.0,58058.0,2.339217]
[1617562361971,0.10725655,58068.0,58063.0,0.36153049]
[1617562362171,0.10725655,58068.0,58063.0,0.56153049]
[1617562362371,0.10725655,58068.0,58067.0,1.10725655]
[1617562362571,0.10725655,58068.0,58067.0,0.10725655]
[1617562362773,0.10725655,58068.0,58067.0,0.37725655]
[1617562365375,3.22935655,58068.0,58067.0,0.37725655]
[1617562365776,3.23946043,58068.0,58067.0,0.37725655]
[1617562366275,3.88942389,58068.0,58067.0,0.37725655]
[1617562366476,0.76732389,58068.0,58067.0,0.37725655]
[1617562367477,1.01007049,58068.0,58067.0,0.37725655]
[1617562368076,0.76732389,58068.0,58067.0,0.37725655]
[1617562368478,1.01006355,58068.0,58067.0,0.37725655]
[1617562368878,0.40729625,58068.0,58067.0,3.39825655]
[1617562369778,0.11735369,58068.0,58067.0,3.39825655]
[1617562370178,0.11235591,58068.0,58067.0,3.39825655]
[1617562370681,0.10725655,58068.0,58067.0,3.39825655]